bitfinex/quotes_ETHUSD_20241013
["timestamp","ask_amount","ask_price","bid_price","bid_amount"]
[1728830105856,61.22145124,2460.0,2459.9,16.18406028]
[1728830106086,61.22145124,2460.0,2459.9,15.61799851]
[1728830106288,61.22145124,2460.0,2459.9,14.62115334]
[1728830107003,61.22145124,2460.0,2459.9,15.61811836]
[1728830107197,61.22145124,2460.0,2459.9,15.61807925]
[1728830107494,61.22145124,2460.0,2459.9,14.62115334]
[1728830108796,61.22145124,2460.0,2459.9,15.61791096]
[1728830109109,61.22145124,2460.0,2459.9,16.47091672]
[1728830109301,61.22145124,2460.0,2459.9,15.61791096]
[1728830109500,61.22145124,2460.0,2459.9,14.62115334]
[1728830109995,61.22145124,2460.0,2459.9,14.62098282]
[1728830110200,61.22145124,2460.0,2459.9,14.07097575]
[1728830110454,61.22145124,2460.0,2459.9,13.4065722]
[1728830110793,61.22145124,2460.0,2459.9,13.00418532]
[1728830111612,61.22145124,2460.0,2459.9,13.55418532]
[1728830115936,61.22145124,2460.0,2459.9,14.21843464]
[1728830116118,61.22145124,2460.0,2459.9,13.55418532]
[1728830116320,61.22145124,2460.0,2459.9,14.21838968]
[1728830117306,61.22145124,2460.0,2459.9,13.55418532]
[1728830119229,61.22145124,2460.0,2459.9,14.21831221]
[1728830119435,61.22145124,2460.0,2459.9,15.21447728]
[1728830119905,57.14734756,2460.0,2459.9,15.21447728]
[1728830120244,57.45038425,2460.0,2459.9,16.06748304]
[1728830120446,57.45038425,2460.0,2459.9,15.21447728]
[1728830120914,57.45038425,2460.0,2459.9,16.06748304]
[1728830121111,57.14734756,2460.0,2459.9,16.06748304]
[1728830121433,57.45049349,2460.0,2459.9,16.06748304]
[1728830122509,57.45049349,2460.0,2459.9,15.21447728]
[1728830123214,57.45049349,2460.0,2459.9,13.55418532]
[1728830123409,57.14734756,2460.0,2459.9,13.55418532]
[1728830123822,57.45060272,2460.0,2459.9,13.55418532]
[1728830125307,57.45060272,2460.0,2459.9,8.90848777]
[1728830126751,57.45060272,2460.0,2459.9,11.90848777]
[1728830127473,57.45060272,2460.0,2459.8,7.54815777]
[1728830127613,0.7957,2459.9,2459.8,7.54815777]
[1728830128062,1.09875968,2459.9,2459.8,7.54815777]
[1728830128431,1.09875968,2459.9,2459.8,3.48278777]
[1728830129820,1.09875968,2459.9,2459.8,4.03278777]
[1728830130420,1.09875968,2459.9,2459.8,3.48278777]
[1728830130421,1.08135968,2459.9,2459.8,3.48278777]
[1728830131936,1.15771258,2459.9,2459.8,3.48278777]
[1728830132917,0.37941258,2459.9,2459.6,3.48278777]
[1728830133562,0.7957,2459.8,2459.6,3.48278777]
[1728830133714,0.37928025,2459.7,2459.6,3.48278777]
[1728830133918,0.7957,2459.7,2459.6,3.48278777]
[1728830134118,1.17498025,2459.7,2459.6,3.48278777]
[1728830134318,0.7957,2459.6,2459.5,0.50080648]
[1728830134768,1.17498025,2459.6,2459.5,0.50080648]
[1728830136117,1.17498025,2459.6,2459.5,1.05080648]
[1728830136359,1.17498025,2459.6,2459.5,0.50080648]
[1728830139056,1.17498025,2459.6,2459.5,1.05080648]
[1728830139571,0.37928025,2459.6,2459.5,1.05080648]
[1728830139722,0.8266,2459.9,2459.6,0.55]
[1728830139921,0.8266,2459.9,2459.8,3.48278777]
[1728830140368,0.8266,2459.9,2459.6,4.03278777]
[1728830141033,0.8266,2459.9,2459.8,3.48278777]
[1728830142167,0.8266,2459.9,2459.6,0.55]
[1728830142326,0.8266,2459.8,2459.5,0.50080648]
[1728830142531,0.8266,2459.8,2459.5,3.98359425]
[1728830143467,0.8266,2459.8,2459.6,0.55]
[1728830144027,0.8266,2459.8,2459.5,0.50080648]
[1728830147641,0.8266,2459.8,2459.5,3.98359425]
[1728830147839,0.8266,2459.8,2459.7,3.48278777]
[1728830148285,0.8266,2459.8,2459.5,0.50080648]
[1728830149756,0.37384463,2459.7,2459.5,0.50080648]
[1728830149962,0.8266,2459.8,2459.5,0.50080648]
[1728830150185,0.37384463,2459.7,2459.5,0.50080648]
[1728830150381,0.8266,2459.8,2459.5,0.50080648]
[1728830150555,0.37384463,2459.6,2459.5,1.05080648]
[1728830150761,0.8266,2459.8,2459.5,1.05080648]
[1728830150966,0.37384463,2459.7,2459.5,1.05080648]
[1728830151177,0.37384463,2459.7,2459.5,0.50080648]
[1728830151475,0.8266,2459.6,2459.5,0.50080648]
[1728830151650,1.20044463,2459.6,2459.5,0.50080648]
[1728830154242,1.20044463,2459.6,2459.5,1.05080648]
[1728830154442,0.37384463,2459.6,2459.5,1.05080648]
[1728830154878,0.8266,2459.8,2459.5,1.05080648]
[1728830155042,0.37385616,2459.6,2459.5,1.05080648]
[1728830155261,0.8266,2459.8,2459.5,1.05080648]
[1728830155666,0.37385616,2459.7,2459.5,1.05080648]
[1728830156081,0.8266,2459.8,2459.5,1.05080648]
[1728830156241,0.37385616,2459.6,2459.5,1.05080648]
[1728830156448,0.8266,2459.8,2459.5,1.05080648]
[1728830156972,0.37385616,2459.7,2459.5,1.05080648]
[1728830157183,0.8266,2459.8,2459.5,1.05080648]
[1728830157490,0.37385616,2459.7,2459.5,1.05080648]
[1728830157851,0.8266,2459.8,2459.5,1.05080648]
[1728830158046,0.37385616,2459.6,2459.5,1.05080648]
[1728830158288,0.8266,2459.8,2459.5,1.05080648]
[1728830158448,0.37385616,2459.6,2459.5,1.05080648]
[1728830158643,0.8266,2459.8,2459.5,1.05080648]
[1728830158847,0.37385616,2459.6,2459.5,1.05080648]
[1728830159076,0.8266,2459.8,2459.5,1.05080648]
[1728830159320,0.37385616,2459.6,2459.5,1.05080648]
[1728830159622,0.8266,2459.8,2459.5,1.05080648]
[1728830159829,0.8266,2459.8,2459.6,0.55]
[1728830160831,0.8266,2459.8,2459.5,0.50080648]
[1728830162004,57.14734756,2460.0,2459.7,3.48278777]
[1728830163940,57.14734756,2460.0,2459.6,0.55]
[1728830164142,0.7906,2459.9,2459.6,0.55]
[1728830164505,0.7906,2459.9,2459.5,3.98359425]
[1728830164948,0.37401783,2459.8,2459.5,3.98359425]
[1728830165108,0.7514,2459.7,2459.5,0.50080648]
[1728830165513,0.37398896,2459.6,2459.5,0.50080648]
[1728830166706,0.37398896,2459.6,2459.5,3.98359425]
[1728830167155,0.37398896,2459.6,2459.5,0.50080648]
[1728830168841,1.07168088,2459.6,2459.5,0.50080648]
[1728830169653,1.46463161,2459.6,2459.5,0.50080648]
[1728830169820,1.0720022,2459.6,2459.5,0.50080648]
[1728830170414,2.26412793,2459.6,2459.5,0.50080648]
[1728830170764,1.0720022,2459.6,2459.5,5.11666648]
[1728830170943,0.37398896,2459.6,2459.5,5.11666648]
[1728830171145,0.37398896,2459.6,2459.5,10.2970859]
[1728830171331,57.14734756,2460.0,2459.6,7.61569]
[1728830171541,57.98991814,2460.0,2459.9,3.48278777]
[1728830171825,57.846195,2460.0,2459.9,3.48278777]
[1728830172447,59.73765559,2460.0,2459.9,4.03278777]
[1728830174301,59.73765559,2460.0,2459.9,8.09798777]
[1728830174416,57.846195,2460.0,2459.9,8.09798777]
[1728830174622,57.14734756,2460.0,2459.9,8.09798777]
[1728830175141,57.14734756,2460.0,2459.9,9.39740055]
[1728830175346,57.14734756,2460.0,2459.9,12.39740055]
[1728830175758,57.14734756,2460.0,2459.9,13.21320055]
[1728830179140,57.14734756,2460.0,2459.9,16.69598832]
[1728830179567,57.14734756,2460.0,2459.9,13.21320055]
[1728830179968,57.52195412,2460.0,2459.9,16.69598832]
[1728830181579,57.52195412,2460.0,2459.9,13.61558743]
[1728830183334,57.52195412,2460.0,2459.9,12.31617465]
[1728830183871,57.52195412,2460.0,2459.9,11.91378777]
[1728830184844,57.52195412,2460.0,2459.9,11.09798777]
[1728830191623,57.52195412,2460.0,2459.9,7.03278777]
[1728830191837,57.52195412,2460.0,2459.9,3.55]
[1728830193009,57.52195412,2460.0,2459.7,3.48278777]
[1728830193179,0.7844,2459.9,2459.7,7.54829777]
[1728830193379,0.37475657,2459.8,2459.7,7.54829777]
[1728830194314,0.37475657,2459.8,2459.7,11.09829777]
[1728830195628,0.37475657,2459.8,2459.7,3.55]
[1728830195826,0.37475657,2459.8,2459.7,6.48278777]
[1728830196315,0.37475657,2459.8,2459.7,3.0]
[1728830196622,0.37475657,2459.8,2459.7,6.48278777]
[1728830197313,0.37475657,2459.8,2459.7,7.03278777]
[1728830198317,0.37475657,2459.8,2459.7,4.03278777]
[1728830198805,0.37475657,2459.8,2459.6,3.55]
[1728830199020,0.37475657,2459.8,2459.6,7.03278777]
[1728830199494,0.7857,2459.7,2459.6,4.03278777]
[1728830199913,1.85870395,2459.7,2459.5,0.5]
[1728830200115,1.16021419,2459.7,2459.5,0.5]
[1728830200316,2.00278477,2459.7,2459.5,0.5]
[1728830200625,0.32666406,2459.6,2459.5,1.05]
[1728830200828,0.70113784,2459.6,2459.5,1.05]
[1728830201992,1.39971962,2459.6,2459.5,1.05]
[1728830203599,2.18541962,2459.6,2459.5,0.5]
[1728830203800,3.23291256,2459.6,2459.5,0.5]
[1728830204009,0.7857,2459.5,2459.0,0.1639]
[1728830204213,2.05253431,2459.1,2459.0,0.1639]
[1728830204410,2.4747218,2459.1,2459.0,0.1639]
[1728830204735,5.99030074,2459.1,2459.0,0.1639]
[1728830205091,4.30127894,2459.1,2459.0,0.1639]
[1728830205438,4.98168446,2459.1,2459.0,0.1639]
[1728830205585,4.98105819,2459.1,2459.0,0.1639]
[1728830205786,4.98099486,2459.1,2459.0,0.1639]
[1728830206013,6.79965882,2459.1,2459.0,0.1639]
[1728830206438,8.59342479,2459.1,2459.0,0.1639]
[1728830206600,3.0,2458.8,2458.2,0.035]
[1728830206928,3.0,2458.8,2458.3,3.48278777]
[1728830206929,3.64246807,2458.8,2458.3,3.48278777]
[1728830207130,4.54572551,2458.8,2458.3,3.48278777]
[1728830207301,4.12436957,2458.8,2458.3,3.48278777]
[1728830207500,4.12385374,2458.8,2458.2,0.035]
[1728830207712,4.119305,2458.8,2458.2,0.035]
[1728830208454,1.53532091,2458.8,2458.2,0.035]
[1728830208748,1.53532091,2458.8,2458.3,3.48278777]
[1728830209539,1.53532091,2458.8,2458.3,7.55061777]
[1728830209741,1.15879383,2458.8,2458.3,7.55061777]
[1728830210044,1.15879383,2458.8,2458.3,7.55053777]
[1728830210250,0.7857,2458.8,2458.3,7.55053777]
[1728830212526,0.7857,2458.8,2458.3,3.48278777]
[1728830213098,0.7857,2458.8,2458.3,7.55062777]
[1728830213647,0.7857,2458.8,2458.3,7.55053777]
[1728830214222,0.7857,2458.8,2458.3,11.61830777]
[1728830214441,0.7857,2458.8,2458.4,4.06764]
[1728830217109,0.7857,2458.8,2458.5,4.0674]
[1728830217536,0.7857,2458.8,2458.3,4.06784]
[1728830217846,1.15863209,2458.8,2458.2,0.035]
[1728830218044,1.15863209,2458.8,2458.2,4.103]
[1728830218265,1.15863209,2458.8,2458.2,0.035]
[1728830219152,0.7537,2458.7,2458.2,0.035]
[1728830219522,0.37285698,2458.6,2458.2,0.035]
[1728830220110,0.7537,2458.7,2458.2,0.035]
[1728830220852,0.37285698,2458.6,2458.2,0.035]
[1728830221148,0.7537,2458.7,2458.2,0.8078]
[1728830221320,0.7537,2458.7,2458.2,0.7078]
[1728830221523,0.7537,2458.7,2458.3,4.61784]
[1728830221726,3.84245811,2459.2,2458.2,4.19058777]
[1728830221727,0.7537,2459.2,2458.5,0.55]
[1728830222052,0.3726085,2459.1,2458.6,4.06726]
[1728830222266,0.7537,2459.2,2458.5,0.55]
[1728830222267,0.7537,2459.2,2458.5,4.61743]
[1728830222548,0.37271251,2459.1,2458.5,4.61743]
[1728830222849,0.7537,2459.2,2458.5,4.61743]
[1728830223025,0.37271251,2459.1,2458.5,4.61743]
[1728830223246,0.7537,2459.2,2458.5,4.61743]
[1728830223421,0.37285118,2459.1,2458.5,4.61743]
[1728830223623,0.7537,2459.0,2458.3,4.06773]
[1728830224063,0.37288584,2458.9,2458.3,4.06773]
[1728830224626,0.37288584,2458.9,2458.3,0.55]
[1728830224932,0.37288584,2458.9,2458.3,4.61783]
[1728830225253,0.7537,2458.8,2458.3,0.55]
[1728830226922,0.37289162,2458.7,2458.3,0.55]
[1728830227127,0.37289162,2458.7,2458.3,4.61769]
[1728830227365,0.7537,2458.8,2458.3,4.61769]
[1728830227871,0.37286275,2458.7,2458.6,4.06731]
[1728830228071,0.7537,2459.0,2458.6,4.06731]
[1728830228236,0.37286275,2458.9,2458.6,4.06731]
[1728830228435,0.37286275,2458.9,2458.7,4.06718]
[1728830228641,0.37286275,2458.9,2458.8,4.06702]
[1728830229079,0.37286275,2458.9,2458.8,8.87260777]
[1728830229242,0.7537,2459.3,2459.0,4.06657]
[1728830229465,0.37281651,2459.2,2459.0,4.06657]
[1728830229650,0.7537,2459.3,2459.0,4.06657]
[1728830229864,8.15245811,2459.7,2459.1,4.06644]
[1728830229865,0.37281651,2459.2,2459.1,4.06644]
[1728830230050,0.7537,2459.6,2459.1,4.06644]
[1728830230267,1.17934251,2459.5,2459.1,4.06644]
[1728830230461,0.37297251,2459.5,2459.1,4.06644]
[1728830230843,0.37297251,2459.5,2459.0,4.06657]
[1728830231036,0.37297251,2459.5,2458.8,11.87249777]
[1728830231281,0.37297251,2459.5,2458.9,4.61684]
[1728830231561,0.7537,2459.4,2458.7,3.0]
[1728830231777,0.7537,2459.4,2458.6,4.06722]
[1728830231940,0.37309381,2459.3,2458.6,4.06722]
[1728830232882,0.37309381,2459.3,2458.7,4.06718]
[1728830233642,0.37309381,2459.3,2458.8,4.067]
[1728830233949,0.37309381,2459.3,2459.0,4.06668]
[1728830234516,0.37309381,2459.3,2458.9,7.54951777]
[1728830234640,0.37309381,2459.3,2458.9,11.61626777]
[1728830235037,0.37309381,2459.3,2458.9,7.54951777]
[1728830235268,0.37309381,2459.3,2459.1,3.48278777]
[1728830235466,0.37309381,2459.3,2459.1,7.54916777]
[1728830235680,0.37309381,2459.3,2459.2,4.06636]
[1728830235848,0.37309381,2459.3,2459.1,11.61555777]
[1728830236049,0.37309381,2459.3,2459.1,4.06638]
[1728830236261,0.37309381,2459.3,2459.1,7.54916777]
[1728830236577,0.37309381,2459.3,2459.2,4.06636]
[1728830236941,8.15245811,2459.7,2459.1,7.54916777]
[1728830236942,0.84245811,2459.7,2459.5,4.06586]
[1728830237176,1.18893419,2459.7,2459.5,7.54864777]
[1728830237378,1.18893419,2459.7,2459.5,7.54855777]
[1728830237549,58.41167744,2460.0,2459.5,7.54855777]
[1728830237550,58.77660567,2460.0,2459.5,7.54855777]
[1728830237749,0.69663162,2459.9,2459.6,4.0657]
[1728830237952,58.77660567,2460.0,2459.5,8.30365777]
[1728830238181,0.69679172,2459.9,2459.5,8.30365777]
[1728830238385,2.58474843,2459.9,2459.5,8.30365777]
[1728830239485,2.58474843,2459.9,2459.5,7.54855777]
[1728830239650,1.0699375,2459.8,2459.5,7.54855777]
[1728830239850,0.37314578,2459.8,2459.5,7.54855777]
[1728830240880,0.37314578,2459.8,2459.6,4.06568]
[1728830241091,0.37314578,2459.8,2459.7,4.06553]
[1728830241396,0.37314578,2459.8,2459.7,8.30341777]
[1728830241745,0.37314578,2459.8,2459.7,8.85341777]
[1728830242091,0.37390236,2459.8,2459.7,8.85341777]
[1728830242253,57.98980567,2460.0,2459.7,8.85341777]
[1728830242448,0.37396009,2459.9,2459.7,8.85341777]
[1728830243253,0.37396009,2459.9,2459.7,4.78788777]
[1728830243449,0.37396009,2459.9,2459.8,4.06537]
[1728830244080,0.37396009,2459.9,2459.8,4.61537]
[1728830245094,0.37396009,2459.9,2459.8,5.90724778]
[1728830245249,0.37396009,2459.9,2459.8,6.66234778]
[1728830245682,0.37396009,2459.9,2459.8,6.65674778]
[1728830245864,0.37396009,2459.9,2459.8,6.65594778]
[1728830246064,0.37396009,2459.9,2459.8,6.65514778]
[1728830246262,0.37396009,2459.9,2459.8,6.65434778]
[1728830246461,0.37396009,2459.9,2459.8,9.65274778]
[1728830246670,0.37396009,2459.9,2459.8,9.65114778]
[1728830246889,0.37396009,2459.9,2459.8,9.65034778]
[1728830247197,0.37396009,2459.9,2459.8,9.64634778]
[1728830247395,0.37396009,2459.9,2459.8,9.64394778]
[1728830247555,0.37396009,2459.9,2459.8,9.64314778]
[1728830247752,0.37396009,2459.9,2459.8,9.64234778]
[1728830247951,0.37396009,2459.9,2459.8,9.63914778]
[1728830248254,0.22396009,2459.9,2459.8,9.63754778]
[1728830248455,0.36954885,2459.9,2459.8,9.63514778]
[1728830248659,0.36954885,2459.9,2459.8,10.04103104]
[1728830248887,0.36954885,2459.9,2459.8,10.03863104]
[1728830249159,0.36954885,2459.9,2459.8,10.03543104]
[1728830249394,0.36954885,2459.9,2459.8,10.03383104]
[1728830249601,0.36954885,2459.9,2459.8,10.03223104]
[1728830249791,0.36954885,2459.9,2459.8,10.03063104]
[1728830249992,0.36954885,2459.9,2459.8,13.51181881]
[1728830250370,0.36954885,2459.9,2459.8,10.02903104]
[1728830250888,0.36954885,2459.9,2459.8,13.51181881]
[1728830251090,0.36954885,2459.9,2459.8,10.02903104]
[1728830253461,0.36954885,2459.9,2459.8,9.62234778]
[1728830254307,0.36954885,2459.9,2459.8,8.33047]
[1728830255907,0.36954885,2459.9,2459.8,7.57537]
[1728830260109,0.36954885,2459.9,2459.8,8.36457]
[1728830261898,0.36954885,2459.9,2459.8,11.84735777]
[1728830266295,0.36954885,2459.9,2459.8,8.36457]
[1728830266491,0.36954885,2459.9,2459.8,13.43864555]
[1728830267607,57.14734756,2460.0,2459.9,8.4044]
[1728830267821,57.14734756,2460.0,2459.9,11.88718777]
[1728830270040,57.14734756,2460.0,2459.9,8.4044]
[1728830270210,57.14734756,2460.0,2459.9,11.88718777]
[1728830270398,57.14734756,2460.0,2459.9,14.3924031]
[1728830278437,57.14734756,2460.0,2459.9,14.69619977]
[1728830280445,57.14734756,2460.0,2459.9,14.69647709]
[1728830282931,57.14734756,2460.0,2459.9,14.69678358]
[1728830287208,57.14734756,2460.0,2459.9,14.3924031]
[1728830287950,57.14734756,2460.0,2459.9,14.69673728]
[1728830289013,57.14734756,2460.0,2459.9,14.3924031]
[1728830289241,57.14734756,2460.0,2459.9,14.69673952]
[1728830290322,57.14734756,2460.0,2459.9,14.3924031]
[1728830290846,57.14734756,2460.0,2459.9,14.69680819]
[1728830293070,57.14734756,2460.0,2459.9,7.36960509]
[1728830293360,58.25883654,2460.0,2459.9,7.0652]
[1728830295757,58.25883654,2460.0,2459.9,7.6152]
[1728830296141,0.8247,2459.9,2459.8,8.09074]
[1728830296350,2.5764972,2459.9,2459.8,4.02537]
[1728830296515,4.19284544,2459.9,2459.8,4.02537]
[1728830297354,2.92176256,2459.9,2459.8,4.02537]
[1728830297557,3.76888483,2459.9,2459.8,7.02537]
[1728830297760,1.87068424,2459.9,2459.8,7.57537]
[1728830298061,1.16996536,2459.9,2459.8,7.57537]
[1728830298547,1.87039302,2459.9,2459.8,7.57537]
[1728830299267,1.16996536,2459.9,2459.8,7.57537]
[1728830304114,0.34526536,2459.9,2459.8,7.57537]
[1728830304528,0.34526536,2459.9,2459.8,11.05815777]
[1728830304755,0.34526536,2459.9,2459.8,12.91880232]
[1728830304961,0.34526536,2459.9,2459.8,9.43601455]
[1728830305960,0.34526536,2459.9,2459.8,7.57537]
[1728830315415,0.34526536,2459.9,2459.8,8.32587]
[1728830316172,0.34526536,2459.9,2459.8,11.80865777]
[1728830316425,57.14734756,2460.0,2459.9,7.6152]
[1728830316601,57.14734756,2460.0,2459.9,11.09798777]
[1728830316784,57.14734756,2460.0,2459.9,13.09192355]
[1728830320281,57.14734756,2460.0,2459.9,16.57471132]
[1728830320621,51.99731473,2460.0,2459.9,16.57471132]
[1728830324140,52.33108288,2460.0,2459.9,16.57471132]
[1728830325307,52.33108288,2460.0,2459.9,13.09192355]
[1728830326198,53.12928288,2460.0,2459.9,13.09192355]
[1728830330761,52.33108288,2460.0,2459.9,13.09192355]
[1728830332312,52.33108288,2460.0,2459.9,12.54192355]
[1728830332523,53.12928288,2460.0,2459.9,10.54798777]
[1728830332759,53.83062867,2460.0,2459.9,10.54798777]
[1728830333862,55.72984402,2460.0,2459.9,10.54798777]
[1728830334016,55.72990427,2460.0,2459.9,11.09798777]
[1728830334217,55.72976908,2460.0,2459.9,11.09798777]
[1728830334523,56.15372969,2460.0,2459.9,11.09798777]
[1728830335021,54.88264681,2460.0,2459.9,11.09798777]
[1728830335221,56.15372969,2460.0,2459.9,11.09798777]
[1728830336545,55.35552969,2460.0,2459.9,11.09798777]
[1728830336857,54.08444681,2460.0,2459.9,11.09798777]
[1728830337172,54.93279537,2460.0,2459.9,11.09798777]
[1728830338063,53.03248253,2460.0,2459.9,14.58077554]
[1728830338220,53.03290483,2460.0,2459.9,17.15293065]
[1728830339321,52.33108288,2460.0,2459.9,17.15293065]
[1728830340105,53.03296902,2460.0,2459.9,17.15293065]
[1728830340264,53.03296902,2460.0,2459.9,13.67014288]
[1728830340799,54.9340928,2460.0,2459.9,13.36515232]
[1728830341985,53.03294742,2460.0,2459.9,17.95274336]
[1728830342401,53.03294742,2460.0,2459.9,14.46995559]
[1728830342577,53.03294742,2460.0,2459.9,17.95274336]
[1728830343079,52.33108288,2460.0,2459.9,17.95274336]
[1728830343290,52.33108288,2460.0,2459.9,18.44083985]
[1728830343474,52.33108288,2460.0,2459.9,18.44083744]
[1728830343902,52.33108288,2460.0,2459.9,18.44083513]
[1728830344898,47.18105005,2460.0,2459.9,18.44083513]
[1728830347372,42.03101722,2460.0,2459.9,18.44083513]
[1728830348086,42.03101722,2460.0,2459.9,11.34108281]
[1728830348494,42.03101722,2460.0,2459.9,14.82387058]
[1728830349675,42.03101722,2460.0,2459.9,15.37387058]
[1728830351027,36.88098439,2460.0,2459.9,16.17365403]
[1728830351209,36.88098439,2460.0,2459.9,16.86834333]
[1728830351376,36.88098439,2460.0,2459.9,18.75484864]
[1728830351576,36.88098439,2460.0,2459.9,19.44947335]
[1728830352515,36.88098439,2460.0,2459.9,18.75484864]
[1728830352717,36.88098439,2460.0,2459.9,19.44943557]
[1728830353025,36.88098439,2460.0,2459.9,20.49128999]
[1728830353835,36.88098439,2460.0,2459.9,7.85827849]
[1728830353976,36.88098439,2460.0,2459.9,10.85301796]
[1728830354673,36.88098439,2460.0,2459.9,12.14072145]
[1728830355153,36.88098439,2460.0,2459.9,12.69072145]
[1728830357066,36.88098439,2460.0,2459.9,11.89092145]
[1728830357219,36.88098439,2460.0,2459.9,11.40296226]
[1728830357729,37.5822065,2460.0,2459.9,10.85296226]
[1728830358056,39.48233897,2460.0,2459.9,10.54798777]
[1728830358524,37.64048439,2460.0,2459.9,4.37019097]
[1728830358727,40.66451823,2460.0,2459.9,4.0652]
[1728830359154,42.49054693,2460.0,2459.9,4.0652]
[1728830359717,40.66536224,2460.0,2459.9,4.0652]
[1728830361286,40.66536224,2460.0,2459.9,4.6152]
[1728830361644,40.79578437,2460.0,2459.9,4.0652]
[1728830362080,42.49056155,2460.0,2459.9,4.0732]
[1728830362377,40.79578437,2460.0,2459.9,4.0732]
[1728830362590,40.79581614,2460.0,2459.9,4.6232]
[1728830362888,40.66547306,2460.0,2459.9,4.6232]
[1728830363949,40.66547306,2460.0,2459.9,4.0732]
[1728830364645,40.79554042,2460.0,2459.9,4.0732]
[1728830365135,42.4903176,2460.0,2459.9,4.0732]
[1728830365337,40.79554042,2460.0,2459.9,4.0732]
[1728830366246,42.4903176,2460.0,2459.9,4.0732]
[1728830366949,42.48950665,2460.0,2459.9,4.0732]
[1728830367149,40.79472947,2460.0,2459.9,4.0732]
[1728830367349,42.48971788,2460.0,2459.9,4.0732]
[1728830367549,42.91375809,2460.0,2459.9,4.0732]
[1728830369184,42.91375809,2460.0,2459.9,0.008]
[1728830370047,42.91375809,2460.0,2459.9,4.0732]
[1728830370589,42.91375809,2460.0,2459.9,0.008]
[1728830372242,40.79472947,2460.0,2459.9,4.0732]
[1728830372447,42.48834661,2460.0,2459.9,4.0732]
[1728830372955,40.66297058,2460.0,2459.9,4.6232]
[1728830373572,40.23954187,2460.0,2459.9,4.6232]
[1728830377480,40.23954187,2460.0,2459.9,8.10598777]
[1728830377787,39.48004187,2460.0,2459.9,8.10598777]
[1728830378090,37.5818531,2460.0,2459.9,8.10598777]
[1728830378494,37.5818531,2460.0,2459.9,8.51630806]
[1728830378692,37.5818531,2460.0,2459.9,15.83149583]
[1728830378693,36.88098439,2460.0,2459.9,15.83149583]
[1728830378931,31.73095156,2460.0,2459.9,16.13604028]
[1728830379287,31.73095156,2460.0,2459.9,16.62325186]
[1728830379503,31.73095156,2460.0,2459.9,15.83149583]
[1728830381443,31.73095156,2460.0,2459.9,16.62300333]
[1728830382510,31.39718341,2460.0,2459.9,12.2857896]
[1728830382713,31.39718341,2460.0,2459.9,12.10307684]
[1728830382714,31.71931299,2460.0,2459.9,12.10307684]
[1728830383995,31.71931299,2460.0,2459.9,11.79870806]
[1728830384213,31.71931299,2460.0,2459.9,12.65307328]
[1728830384832,31.71931299,2460.0,2459.9,12.34870806]
[1728830385074,31.71931299,2460.0,2459.9,12.65305594]
[1728830388851,31.71931299,2460.0,2459.9,12.65301836]
[1728830390154,31.71931299,2460.0,2459.9,12.34870806]
[1728830390328,31.71931299,2460.0,2459.9,12.65300407]
[1728830392810,31.71931299,2460.0,2459.9,12.65297421]
[1728830394429,31.39718341,2460.0,2459.9,12.65297421]
[1728830394627,31.72001678,2460.0,2459.9,12.65297421]
[1728830399222,31.72001678,2460.0,2459.9,12.65291313]
[1728830400760,31.72001678,2460.0,2459.9,11.82050186]
[1728830400923,31.72001678,2460.0,2459.9,11.51630806]
[1728830401118,31.72001678,2460.0,2459.9,12.61270461]
[1728830403463,31.72001678,2460.0,2459.9,16.24964009]
[1728830403759,31.72001678,2460.0,2459.9,15.94544354]
[1728830403979,31.39718341,2460.0,2459.9,15.94544354]
[1728830404369,31.72001678,2460.0,2459.9,15.94544354]
[1728830405443,31.72001678,2460.0,2459.9,12.46265577]
[1728830406283,31.72001678,2460.0,2459.9,12.47065577]
[1728830406793,31.72001678,2460.0,2459.9,15.95344354]
[1728830407284,31.72001678,2460.0,2459.9,12.16650806]
[1728830407639,31.72001678,2460.0,2459.9,12.47063624]
[1728830409045,32.51721678,2460.0,2459.9,4.23532818]
[1728830409246,32.51721678,2460.0,2459.9,3.9312]
[1728830409687,33.21674224,2460.0,2459.9,3.9312]
[1728830411006,33.21674224,2460.0,2459.9,7.4812]
[1728830411182,35.11291082,2460.0,2459.9,7.4812]
[1728830411416,33.21674224,2460.0,2459.9,7.4812]
[1728830411813,33.21672714,2460.0,2459.9,7.4812]
[1728830414081,35.11287766,2460.0,2459.9,7.4812]
[1728830418387,35.11287766,2460.0,2459.9,4.4812]
[1728830420107,35.11287766,2460.0,2459.9,3.9312]
[1728830420365,35.11287766,2460.0,2459.9,0.008]
[1728830420541,35.53532259,2460.0,2459.9,0.008]
[1728830420843,37.35902556,2460.0,2459.9,0.008]
[1728830421051,37.35949831,2460.0,2459.9,0.008]
[1728830421941,35.66588117,2460.0,2459.9,0.008]
[1728830422150,37.35753879,2460.0,2459.9,0.008]
[1728830422307,37.35754203,2460.0,2459.9,0.008]
[1728830422507,35.66588117,2460.0,2459.9,0.008]
[1728830423047,37.35756981,2460.0,2459.9,4.0732]
[1728830423846,37.35756981,2460.0,2459.9,0.008]
[1728830424052,35.66588117,2460.0,2459.9,0.008]
[1728830424349,37.35690402,2460.0,2459.9,0.008]
[1728830425639,37.35512109,2460.0,2459.9,0.008]
[1728830429205,35.66409824,2460.0,2459.9,0.008]
[1728830430230,35.53188047,2460.0,2459.9,0.008]
[1728830430634,35.66172801,2460.0,2459.9,0.008]
[1728830430835,35.53184856,2460.0,2459.9,0.008]
[1728830431046,37.35273238,2460.0,2459.9,0.008]
[1728830431261,35.66170953,2460.0,2459.9,0.008]
[1728830431633,35.66170953,2460.0,2459.3,4.06612]
[1728830431634,38.3472973,2460.0,2459.3,4.06612]
[1728830431838,0.8067,2459.4,2459.3,4.06611]
[1728830432041,1.16994416,2459.4,2459.3,4.06611]
[1728830433176,1.16994416,2459.4,2459.2,4.06635]
[1728830433177,0.8067,2459.3,2459.2,8.13254]
[1728830433476,1.49796465,2459.3,2459.2,4.06627]
[1728830433775,2.19593923,2459.3,2459.2,4.06627]
[1728830434161,1.49796465,2459.3,2459.2,4.06627]
[1728830434476,1.49796465,2459.3,2459.2,4.07427]
[1728830434773,2.34256193,2459.3,2459.2,4.07427]
[1728830434983,4.08703565,2459.3,2459.2,4.07427]
[1728830435146,2.19575491,2459.3,2459.2,4.07427]
[1728830436136,1.49796465,2459.3,2459.2,4.07427]
[1728830437333,1.16982091,2459.3,2459.2,4.07427]
[1728830439293,1.16982091,2459.3,2459.2,0.008]
[1728830439580,1.16982091,2459.3,2459.2,4.07436]
[1728830446849,0.36312091,2459.3,2459.2,4.07436]
[1728830447050,0.84459728,2459.5,2459.2,0.008]
[1728830447051,0.7606,2459.5,2459.2,0.008]
[1728830447285,0.7606,2459.5,2459.1,4.06644]
[1728830447286,3.34858101,2459.5,2459.4,4.07403]